BODY,BODY NAME,DATE,TRANSACTION NUMBER, AMOUNT ,SUPPLIER NAME,SUPPLIER ID,EXPENSE AREA,EXPENSE TYPE,EXPENSE CODE
http://statistics.data.gov.uk/id/local-authority/12UE,Huntingdonshire District Council,19/05/2011,82502,2808.00,Elephant & Castle Freehouse & Motel,CR401969,Accommodation For Homeless,Bed & Breakfast Payment,818
http://statistics.data.gov.uk/id/local-authority/12UE,Huntingdonshire District Council,12/05/2011,81916,2646.00,Elephant & Castle Freehouse & Motel,CR401969,Accommodation For Homeless,Bed & Breakfast Payment,818
http://statistics.data.gov.uk/id/local-authority/12UE,Huntingdonshire District Council,05/05/2011,81581,2538.00,Elephant & Castle Freehouse & Motel,CR401969,Accommodation For Homeless,Bed & Breakfast Payment,818
http://statistics.data.gov.uk/id/local-authority/12UE,Huntingdonshire District Council,26/05/2011,82730,2160.00,Elephant & Castle Freehouse & Motel,CR401969,Accommodation For Homeless,Bed & Breakfast Payment,818
http://statistics.data.gov.uk/id/local-authority/12UE,Huntingdonshire District Council,19/05/2011,82504,7923.50,King Street Housing Society,CR409301,Accommodation For Homeless,Management Charge,733
http://statistics.data.gov.uk/id/local-authority/12UE,Huntingdonshire District Council,12/05/2011,81147,1019.48,M & N Vehicle Services,CR480661,Bring Sites Recycling,Vehicle Maintenance,619
http://statistics.data.gov.uk/id/local-authority/12UE,Huntingdonshire District Council,05/05/2011,81517,857.81,Opus International Consultants,CR479831,Building Control Applications,Consultants Other,711
http://statistics.data.gov.uk/id/local-authority/12UE,Huntingdonshire District Council,05/05/2011,81517,115.29,Opus International Consultants,CR479831,Building Control Other,Consultants Other,711
http://statistics.data.gov.uk/id/local-authority/12UE,Huntingdonshire District Council,19/05/2011,81312,1014.00,Beebys Limited,CR415822,Bus Stations,Building Cleaning Internal,440
http://statistics.data.gov.uk/id/local-authority/12UE,Huntingdonshire District Council,19/05/2011,82433,806.58,Swalec,CR407130,Bus Stations,Electricity,420
http://statistics.data.gov.uk/id/local-authority/12UE,Huntingdonshire District Council,19/05/2011,81576,555.25,Dorma Uk Ltd,CR410342,Bus Stations,Gen Building Mtce - Responsive,303
http://statistics.data.gov.uk/id/local-authority/12UE,Huntingdonshire District Council,19/05/2011,81312,24.00,Beebys Limited,CR415822,Bus Stations,Window Cleaning,442
http://statistics.data.gov.uk/id/local-authority/12UE,Huntingdonshire District Council,19/05/2011,81659,810.00,Serco Ltd,CR481193,Business & Enterprise Support,Conferences,137
http://statistics.data.gov.uk/id/local-authority/12UE,Huntingdonshire District Council,19/05/2011,82493,552.00,Amt Action For Market Towns,CR479155,Business & Enterprise Support,Corporate Subscriptions,754
http://statistics.data.gov.uk/id/local-authority/12UE,Huntingdonshire District Council,26/05/2011,79966,540.00,Your Total Coach Ltd,CR480896,Business & Enterprise Support,Instructors/Tutors,720
http://statistics.data.gov.uk/id/local-authority/12UE,Huntingdonshire District Council,26/05/2011,81937,3997.00,Quadrant Security Group,CR027775,C C T V,Equipment Maintenance,511
http://statistics.data.gov.uk/id/local-authority/12UE,Huntingdonshire District Council,12/05/2011,80987,12354.00,Quadrant Security Group,CR027775,C C T V Equipment Capital,Equipment Purchases,500
http://statistics.data.gov.uk/id/local-authority/12UE,Huntingdonshire District Council,19/05/2011,79585,-182.96,Elecheck (Est) Ltd,CR480242,Call Centre,Electrical Testing,383
http://statistics.data.gov.uk/id/local-authority/12UE,Huntingdonshire District Council,05/05/2011,80658,13.40,T N T Post Midlands Ltd,CR479965,Call Centre,Postage,231
http://statistics.data.gov.uk/id/local-authority/12UE,Huntingdonshire District Council,26/05/2011,81887,32.62,T N T Post Midlands Ltd,CR479965,Call Centre,Postage,231
http://statistics.data.gov.uk/id/local-authority/12UE,Huntingdonshire District Council,12/05/2011,81812,13.93,T N T Post Midlands Ltd,CR479965,Call Centre,Postage,231
http://statistics.data.gov.uk/id/local-authority/12UE,Huntingdonshire District Council,12/05/2011,81183,13.67,T N T Post Midlands Ltd,CR479965,Call Centre,Postage,231
http://statistics.data.gov.uk/id/local-authority/12UE,Huntingdonshire District Council,26/05/2011,81648,816.90,Mhb Services,CR417269,Car Park Assets,Sitework,359
http://statistics.data.gov.uk/id/local-authority/12UE,Huntingdonshire District Council,05/05/2011,80986,3708.12,Cale Briparc Ltd,CR401137,Car Park Management,Car Park Machines,522
http://statistics.data.gov.uk/id/local-authority/12UE,Huntingdonshire District Council,26/05/2011,82523,5708.72,G4s Cashservices Uk Ltd,CR407133,Car Park Management,Cash Collection,702
http://statistics.data.gov.uk/id/local-authority/12UE,Huntingdonshire District Council,19/05/2011,79585,-13.27,Elecheck (Est) Ltd,CR480242,Car Park Management,Electrical Testing,383
http://statistics.data.gov.uk/id/local-authority/12UE,Huntingdonshire District Council,19/05/2011,82437,651.42,Swalec,CR407130,Car Park Management,Electricity,420
http://statistics.data.gov.uk/id/local-authority/12UE,Huntingdonshire District Council,26/05/2011,81999,1160.72,Cale Briparc Ltd,CR401137,Car Park Management,Equipment Purchases,500
http://statistics.data.gov.uk/id/local-authority/12UE,Huntingdonshire District Council,12/05/2011,82097,3118.70,Chipside,CR479533,Car Park Management,Other I T Hardware,203
http://statistics.data.gov.uk/id/local-authority/12UE,Huntingdonshire District Council,26/05/2011,82291,538.20,John Henry & Sons,CR031967,Car Park Management,Sitework,359
http://statistics.data.gov.uk/id/local-authority/12UE,Huntingdonshire District Council,12/05/2011,82095,2232.50,Chipside,CR479533,Car Park Management,Software,206
http://statistics.data.gov.uk/id/local-authority/12UE,Huntingdonshire District Council,12/05/2011,81173,18000.00,Chapman Taylor Llp,CR481129,Car Parks Capital,Consultants Other,711
http://statistics.data.gov.uk/id/local-authority/12UE,Huntingdonshire District Council,26/05/2011,83137,750.00,Anglian Water,CR011617,Car Parks Capital,Sitework,359
http://statistics.data.gov.uk/id/local-authority/12UE,Huntingdonshire District Council,17/05/2011,82345,2059.57,Mr N R J Moore,CR480972,Chief Executive & C O M T,Building Construction,300
http://statistics.data.gov.uk/id/local-authority/12UE,Huntingdonshire District Council,19/05/2011,516109,500.00,Mr Stephen Moir,CR482322,Chief Executive & C O M T,Consultants Other,711
http://statistics.data.gov.uk/id/local-authority/12UE,Huntingdonshire District Council,12/05/2011,80566,4315.20,Sharpe Pritchard,CR480887,Chief Executive & C O M T,Consultants Other,711
http://statistics.data.gov.uk/id/local-authority/12UE,Huntingdonshire District Council,19/05/2011,81992,5400.00,Barker Storey Matthews,CR400788,Chief Executive & C O M T,Legal Fees And Consultancy,729
http://statistics.data.gov.uk/id/local-authority/12UE,Huntingdonshire District Council,12/05/2011,82117,586.71,Lex Autolease Ltd,CR410751,Chief Executive & C O M T,Vehicle Operating Lease,601
http://statistics.data.gov.uk/id/local-authority/12UE,Huntingdonshire District Council,05/05/2011,81600,3076.56,Locata Housing Services Ltd,CR478274,Choice Based Lettings (Ex Chr),Advertising/Promoting Services,255
http://statistics.data.gov.uk/id/local-authority/12UE,Huntingdonshire District Council,05/05/2011,81603,4714.28,Locata Housing Services Ltd,CR478274,Choice Based Lettings (Ex Chr),Software,206
http://statistics.data.gov.uk/id/local-authority/12UE,Huntingdonshire District Council,05/05/2011,81599,600.00,Locata Housing Services Ltd,CR478274,Choice Based Lettings (Ex Chr),Software,206
http://statistics.data.gov.uk/id/local-authority/12UE,Huntingdonshire District Council,12/05/2011,81997,140.65,Dell Computer Corporation,CR408320,Community Services M Us,Other I T Hardware,203
http://statistics.data.gov.uk/id/local-authority/12UE,Huntingdonshire District Council,26/05/2011,516791,2500.00,REDACTED PERSONAL DATA,CR482351,Conservation & Listed Build,Grants (Paid Out),800
http://statistics.data.gov.uk/id/local-authority/12UE,Huntingdonshire District Council,12/05/2011,81171,518.32,Rossendales Ltd,CR479503,Council Tax,Bailiffs,703
http://statistics.data.gov.uk/id/local-authority/12UE,Huntingdonshire District Council,12/05/2011,81977,88.16,Shell Uk Ltd,CR028192,Countryside Management,Petrol,614
http://statistics.data.gov.uk/id/local-authority/12UE,Huntingdonshire District Council,26/05/2011,82524,520.86,G4s Cashservices Uk Ltd,CR407133,Customer Service Centres,Cash Collection,702
http://statistics.data.gov.uk/id/local-authority/12UE,Huntingdonshire District Council,19/05/2011,79585,-145.20,Elecheck (Est) Ltd,CR480242,Customer Service Centres,Electrical Testing,383
http://statistics.data.gov.uk/id/local-authority/12UE,Huntingdonshire District Council,19/05/2011,82080,612.25,Swalec,CR407130,Customer Service Centres,Electricity,420
http://statistics.data.gov.uk/id/local-authority/12UE,Huntingdonshire District Council,19/05/2011,81604,527.52,Swalec,CR407130,Customer Service Centres,Electricity,420
http://statistics.data.gov.uk/id/local-authority/12UE,Huntingdonshire District Council,19/05/2011,82081,-612.25,Swalec,CR407130,Customer Service Centres,Electricity,420
http://statistics.data.gov.uk/id/local-authority/12UE,Huntingdonshire District Council,26/05/2011,82661,858.00,Peterborough Engraving,CR000620,Cycling,Signs,565
http://statistics.data.gov.uk/id/local-authority/12UE,Huntingdonshire District Council,26/05/2011,82530,9639.37,Drivers  Jonas Deloitte,CR400573,Dc Application Processing,Consultants Other,711
http://statistics.data.gov.uk/id/local-authority/12UE,Huntingdonshire District Council,05/05/2011,81597,7520.41,Drivers  Jonas Deloitte,CR400573,Dc Application Processing,Consultants Other,711
http://statistics.data.gov.uk/id/local-authority/12UE,Huntingdonshire District Council,12/05/2011,77139,29.06,Daisy Communications Ltd,CR481089,Development Team,Registration Fee,748
http://statistics.data.gov.uk/id/local-authority/12UE,Huntingdonshire District Council,27/05/2011,517114,960.00,Miss Saira Kabir Sheikh,CR409440,Dm Enforcement,Legal Fees And Consultancy,729
http://statistics.data.gov.uk/id/local-authority/12UE,Huntingdonshire District Council,05/05/2011,80643,575.63,Konica Minolta Business Solutions East Ltd,CR478866,Document Centre,Equipment Maintenance,511
http://statistics.data.gov.uk/id/local-authority/12UE,Huntingdonshire District Council,26/05/2011,82381,1793.02,Neopost,CR028326,Document Centre,Equipment Maintenance,511
http://statistics.data.gov.uk/id/local-authority/12UE,Huntingdonshire District Council,05/05/2011,80869,820.80,Neopost,CR028326,Document Centre,Equipment Maintenance,511
http://statistics.data.gov.uk/id/local-authority/12UE,Huntingdonshire District Council,26/05/2011,81871,911.14,Oce (Uk) Ltd,CR417161,Document Centre,Equipment Maintenance,511
http://statistics.data.gov.uk/id/local-authority/12UE,Huntingdonshire District Council,12/05/2011,81515,2398.90,Ricoh Uk Ltd,CR477632,Document Centre,Equipment Maintenance,511
http://statistics.data.gov.uk/id/local-authority/12UE,Huntingdonshire District Council,05/05/2011,80866,689.18,Xerox Office Supplies,CR481184,Document Centre,Paper,562
http://statistics.data.gov.uk/id/local-authority/12UE,Huntingdonshire District Council,19/05/2011,81516,1363.42,Royal Mail,CR027083,Document Centre,Postage,231
http://statistics.data.gov.uk/id/local-authority/12UE,Huntingdonshire District Council,05/05/2011,80865,1261.74,Royal Mail,CR027083,Document Centre,Postage,231
http://statistics.data.gov.uk/id/local-authority/12UE,Huntingdonshire District Council,19/05/2011,81514,931.90,T N T Post Midlands Ltd,CR479965,Document Centre,Postage,231
http://statistics.data.gov.uk/id/local-authority/12UE,Huntingdonshire District Council,05/05/2011,80658,579.47,T N T Post Midlands Ltd,CR479965,Document Centre,Postage,231
http://statistics.data.gov.uk/id/local-authority/12UE,Huntingdonshire District Council,19/05/2011,82324,851.72,T N T Post Midlands Ltd,CR479965,Document Centre,Postage,231
http://statistics.data.gov.uk/id/local-authority/12UE,Huntingdonshire District Council,19/05/2011,77875,784.98,T N T Post Midlands Ltd,CR479965,Document Centre,Postage,231
http://statistics.data.gov.uk/id/local-authority/12UE,Huntingdonshire District Council,26/05/2011,81887,950.77,T N T Post Midlands Ltd,CR479965,Document Centre,Postage,231
http://statistics.data.gov.uk/id/local-authority/12UE,Huntingdonshire District Council,12/05/2011,81812,696.42,T N T Post Midlands Ltd,CR479965,Document Centre,Postage,231
http://statistics.data.gov.uk/id/local-authority/12UE,Huntingdonshire District Council,05/05/2011,78419,1180.24,T N T Post Midlands Ltd,CR479965,Document Centre,Postage,231
http://statistics.data.gov.uk/id/local-authority/12UE,Huntingdonshire District Council,12/05/2011,81183,834.92,T N T Post Midlands Ltd,CR479965,Document Centre,Postage,231
http://statistics.data.gov.uk/id/local-authority/12UE,Huntingdonshire District Council,05/05/2011,81174,-1180.24,T N T Post Midlands Ltd,CR479965,Document Centre,Postage,231
http://statistics.data.gov.uk/id/local-authority/12UE,Huntingdonshire District Council,19/05/2011,82325,-784.98,T N T Post Midlands Ltd,CR479965,Document Centre,Postage,231
http://statistics.data.gov.uk/id/local-authority/12UE,Huntingdonshire District Council,12/05/2011,81873,546.38,Bigprinting,CR416383,Document Centre,Subcontractors,777
http://statistics.data.gov.uk/id/local-authority/12UE,Huntingdonshire District Council,26/05/2011,81872,518.40,Bigprinting,CR416383,Document Centre,Subcontractors,777
http://statistics.data.gov.uk/id/local-authority/12UE,Huntingdonshire District Council,05/05/2011,80625,1530.00,Egbert H Taylor And Co,CR004818,Domestic Refuse,Equipment Maintenance,511
http://statistics.data.gov.uk/id/local-authority/12UE,Huntingdonshire District Council,19/05/2011,81958,3755.56,Staffline Group,CR416827,Domestic Refuse,Hired Staff,100
http://statistics.data.gov.uk/id/local-authority/12UE,Huntingdonshire District Council,26/05/2011,81959,3162.53,Staffline Group,CR416827,Domestic Refuse,Hired Staff,100
http://statistics.data.gov.uk/id/local-authority/12UE,Huntingdonshire District Council,12/05/2011,81220,3003.06,Staffline Group,CR416827,Domestic Refuse,Hired Staff,100
http://statistics.data.gov.uk/id/local-authority/12UE,Huntingdonshire District Council,05/05/2011,81137,2838.35,Staffline Group,CR416827,Domestic Refuse,Hired Staff,100
http://statistics.data.gov.uk/id/local-authority/12UE,Huntingdonshire District Council,12/05/2011,81215,1383.49,Staffline Group,CR416827,Domestic Refuse,Hired Staff,100
http://statistics.data.gov.uk/id/local-authority/12UE,Huntingdonshire District Council,19/05/2011,81948,1004.82,Staffline Group,CR416827,Domestic Refuse,Hired Staff,100
http://statistics.data.gov.uk/id/local-authority/12UE,Huntingdonshire District Council,26/05/2011,81962,922.46,Staffline Group,CR416827,Domestic Refuse,Hired Staff,100
http://statistics.data.gov.uk/id/local-authority/12UE,Huntingdonshire District Council,05/05/2011,81141,889.40,Staffline Group,CR416827,Domestic Refuse,Hired Staff,100
http://statistics.data.gov.uk/id/local-authority/12UE,Huntingdonshire District Council,26/05/2011,81854,690.48,Burnt Tree Group,CR480897,Domestic Refuse,Vehicle Hire,607
http://statistics.data.gov.uk/id/local-authority/12UE,Huntingdonshire District Council,12/05/2011,80892,1101.60,Manvick Hire Ltd,CR410971,Domestic Refuse,Vehicle Hire,607
http://statistics.data.gov.uk/id/local-authority/12UE,Huntingdonshire District Council,20/05/2011,82478,-80.00,Post Office  Ltd,CR008902,Domestic Refuse,Vehicle Licence,609
http://statistics.data.gov.uk/id/local-authority/12UE,Huntingdonshire District Council,12/05/2011,80956,611.45,A C Commercials,CR000141,Domestic Refuse,Vehicle Maintenance,619
http://statistics.data.gov.uk/id/local-authority/12UE,Huntingdonshire District Council,19/05/2011,81254,19012.32,Dennis Eagle Ltd,CR000200,Domestic Refuse,Vehicle Maintenance,619
http://statistics.data.gov.uk/id/local-authority/12UE,Huntingdonshire District Council,12/05/2011,80988,546.26,Dennis Eagle Ltd,CR000200,Domestic Refuse,Vehicle Maintenance,619
http://statistics.data.gov.uk/id/local-authority/12UE,Huntingdonshire District Council,19/05/2011,82465,535.73,Dennis Eagle Ltd,CR000200,Domestic Refuse,Vehicle Maintenance,619
http://statistics.data.gov.uk/id/local-authority/12UE,Huntingdonshire District Council,19/05/2011,81510,1241.71,M & N Vehicle Services,CR480661,Domestic Refuse,Vehicle Maintenance,619
http://statistics.data.gov.uk/id/local-authority/12UE,Huntingdonshire District Council,26/05/2011,82449,1210.96,M & N Vehicle Services,CR480661,Domestic Refuse,Vehicle Maintenance,619
http://statistics.data.gov.uk/id/local-authority/12UE,Huntingdonshire District Council,12/05/2011,81250,1006.29,Terberg Matec Uk Ltd,CR402183,Domestic Refuse,Vehicle Maintenance,619
http://statistics.data.gov.uk/id/local-authority/12UE,Huntingdonshire District Council,26/05/2011,82470,1657.98,Dennis Eagle Ltd,CR000200,Domestic Refuse,Vehicle Parts,625
http://statistics.data.gov.uk/id/local-authority/12UE,Huntingdonshire District Council,05/05/2011,81319,1381.97,Ecocleen Services Limited,CR406985,Efh & Depots,Building Cleaning Internal,440
http://statistics.data.gov.uk/id/local-authority/12UE,Huntingdonshire District Council,19/05/2011,82430,4427.78,Swalec,CR407130,Efh & Depots,Electricity,420
http://statistics.data.gov.uk/id/local-authority/12UE,Huntingdonshire District Council,05/05/2011,80393,1728.00,Dal-Rod (Camridgeshire),CR413675,Efh & Depots,Gen Building Mtce - Planned,304
http://statistics.data.gov.uk/id/local-authority/12UE,Huntingdonshire District Council,26/05/2011,81984,934.32,Cambridge Door Services,CR415341,Efh & Depots,Gen Building Mtce - Responsive,303
http://statistics.data.gov.uk/id/local-authority/12UE,Huntingdonshire District Council,19/05/2011,81322,2280.00,West Anglia Training Assoc.Ltd,CR025035,Eh Health & Safety,Training - Operational,131
http://statistics.data.gov.uk/id/local-authority/12UE,Huntingdonshire District Council,26/05/2011,81880,2590.45,Royal Mail,CR027083,Elections,Postage,231
http://statistics.data.gov.uk/id/local-authority/12UE,Huntingdonshire District Council,19/05/2011,81516,412.99,Royal Mail,CR027083,Elections,Postage,231
http://statistics.data.gov.uk/id/local-authority/12UE,Huntingdonshire District Council,05/05/2011,80865,371.52,Royal Mail,CR027083,Elections,Postage,231
http://statistics.data.gov.uk/id/local-authority/12UE,Huntingdonshire District Council,19/05/2011,81514,16.62,T N T Post Midlands Ltd,CR479965,Elections,Postage,231
http://statistics.data.gov.uk/id/local-authority/12UE,Huntingdonshire District Council,05/05/2011,80658,21.29,T N T Post Midlands Ltd,CR479965,Elections,Postage,231
http://statistics.data.gov.uk/id/local-authority/12UE,Huntingdonshire District Council,19/05/2011,82324,55.72,T N T Post Midlands Ltd,CR479965,Elections,Postage,231
http://statistics.data.gov.uk/id/local-authority/12UE,Huntingdonshire District Council,19/05/2011,77875,55.72,T N T Post Midlands Ltd,CR479965,Elections,Postage,231
http://statistics.data.gov.uk/id/local-authority/12UE,Huntingdonshire District Council,26/05/2011,81887,67.13,T N T Post Midlands Ltd,CR479965,Elections,Postage,231
http://statistics.data.gov.uk/id/local-authority/12UE,Huntingdonshire District Council,12/05/2011,81183,64.39,T N T Post Midlands Ltd,CR479965,Elections,Postage,231
http://statistics.data.gov.uk/id/local-authority/12UE,Huntingdonshire District Council,19/05/2011,82325,-55.72,T N T Post Midlands Ltd,CR479965,Elections,Postage,231
http://statistics.data.gov.uk/id/local-authority/12UE,Huntingdonshire District Council,12/05/2011,82101,11352.86,Sci Print Limited,CR416581,Elections,Stationery,225
http://statistics.data.gov.uk/id/local-authority/12UE,Huntingdonshire District Council,26/05/2011,82375,8665.20,Victoirepress,CR404724,Elections,Stationery,225
http://statistics.data.gov.uk/id/local-authority/12UE,Huntingdonshire District Council,26/05/2011,82377,7356.00,Victoirepress,CR404724,Elections,Stationery,225
http://statistics.data.gov.uk/id/local-authority/12UE,Huntingdonshire District Council,12/05/2011,81877,1800.00,Versapak International Ltd,CR031334,Elections Equipment,Equipment Purchases,500
http://statistics.data.gov.uk/id/local-authority/12UE,Huntingdonshire District Council,12/05/2011,80692,3300.00,Archant Herts And Cambs,CR403271,Energy Efficiency,Advertising/Promoting Services,255
http://statistics.data.gov.uk/id/local-authority/12UE,Huntingdonshire District Council,26/05/2011,82293,1281.31,John Henry & Sons,CR031967,Energy Efficiency,Sitework,359
http://statistics.data.gov.uk/id/local-authority/12UE,Huntingdonshire District Council,12/05/2011,81997,890.94,Dell Computer Corporation,CR408320,Environmental Health M Us,P C'S And Accessories,201
http://statistics.data.gov.uk/id/local-authority/12UE,Huntingdonshire District Council,05/05/2011,80068,1396.80,Trading Standards,CR487240,Environmental Health M Us,Subcontractors,777
http://statistics.data.gov.uk/id/local-authority/12UE,Huntingdonshire District Council,05/05/2011,80469,1500.00,Zurich Municipal,CR003638,Environmental Imps Mgt,Insurance Excess,797
http://statistics.data.gov.uk/id/local-authority/12UE,Huntingdonshire District Council,26/05/2011,82733,3011.70,Deloitte,CR416667,Estates Properties Capital,Consultants Other,711
http://statistics.data.gov.uk/id/local-authority/12UE,Huntingdonshire District Council,12/05/2011,80930,28320.00,Pricewaterhouse Coopers Llp,CR487210,External Audit,Audit Fees,701
http://statistics.data.gov.uk/id/local-authority/12UE,Huntingdonshire District Council,26/05/2011,82907,2069.22,C G Utilities,CR119758,Facilities Mgt,Consultants Other,711
http://statistics.data.gov.uk/id/local-authority/12UE,Huntingdonshire District Council,12/05/2011,81980,1891.80,Advanced Business Solutions,CR032921,Financial Services,Software,206
http://statistics.data.gov.uk/id/local-authority/12UE,Huntingdonshire District Council,19/05/2011,81639,5490.00,Cipfa,CR480451,Financial Services Mus,Books & Publications,250
http://statistics.data.gov.uk/id/local-authority/12UE,Huntingdonshire District Council,12/05/2011,81640,5998.80,Public Sector Consultants,CR479754,Financial Services Mus,Consultants Other,711
http://statistics.data.gov.uk/id/local-authority/12UE,Huntingdonshire District Council,12/05/2011,81165,3408.00,Cipfa Business Limited,CR480088,Financial Services Mus,Corporate Subscriptions,754
http://statistics.data.gov.uk/id/local-authority/12UE,Huntingdonshire District Council,26/05/2011,81986,98.28,Days Contract Hire,CR417030,Fleet Management,Service Charges,412
http://statistics.data.gov.uk/id/local-authority/12UE,Huntingdonshire District Council,26/05/2011,81986,985.81,Days Contract Hire,CR417030,Fleet Management,Vehicle Finance Leases,602
http://statistics.data.gov.uk/id/local-authority/12UE,Huntingdonshire District Council,05/05/2011,81518,6937.76,Computershare Vouchers Ltd,CR412205,General Creditors,Deductions Paid To Third Party,26
http://statistics.data.gov.uk/id/local-authority/12UE,Huntingdonshire District Council,26/05/2011,81960,1222.99,Staffline Group,CR416827,Grounds Maintenance (Combined),Hired Staff,100
http://statistics.data.gov.uk/id/local-authority/12UE,Huntingdonshire District Council,12/05/2011,81218,940.90,Staffline Group,CR416827,Grounds Maintenance (Combined),Hired Staff,100
http://statistics.data.gov.uk/id/local-authority/12UE,Huntingdonshire District Council,19/05/2011,81953,773.10,Staffline Group,CR416827,Grounds Maintenance (Combined),Hired Staff,100
http://statistics.data.gov.uk/id/local-authority/12UE,Huntingdonshire District Council,26/05/2011,82069,330.44,Arthur Ibbett Ltd,CR000430,Grounds Maintenance (Combined),Materials,550
http://statistics.data.gov.uk/id/local-authority/12UE,Huntingdonshire District Council,12/05/2011,81977,464.12,Shell Uk Ltd,CR028192,Grounds Maintenance (Combined),Petrol,614
http://statistics.data.gov.uk/id/local-authority/12UE,Huntingdonshire District Council,26/05/2011,82069,223.98,Arthur Ibbett Ltd,CR000430,Grounds Maintenance (Combined),Protective Clothing & Uniforms,163
http://statistics.data.gov.uk/id/local-authority/12UE,Huntingdonshire District Council,26/05/2011,82801,504.00,Ians Tyre And Exhaust Centre,CR405836,Grounds Maintenance (Combined),Tyres,630
http://statistics.data.gov.uk/id/local-authority/12UE,Huntingdonshire District Council,20/05/2011,82478,1050.00,Post Office  Ltd,CR008902,Grounds Maintenance (Combined),Vehicle Licence,609
http://statistics.data.gov.uk/id/local-authority/12UE,Huntingdonshire District Council,26/05/2011,82069,185.74,Arthur Ibbett Ltd,CR000430,Grounds Maintenance (Combined),Vehicle Oil,626
http://statistics.data.gov.uk/id/local-authority/12UE,Huntingdonshire District Council,05/05/2011,80520,2040.00,Learning Pool Limited,CR416813,Head Of Imd,Training - I T,134
http://statistics.data.gov.uk/id/local-authority/12UE,Huntingdonshire District Council,12/05/2011,82100,2000.00,Canterbury Christ Church University,CR482327,Head Of Imd,Training - Other,136
http://statistics.data.gov.uk/id/local-authority/12UE,Huntingdonshire District Council,05/05/2011,80654,684.00,1st Choice Recruitment,CR406132,Helpdesk,Hired Staff,100
http://statistics.data.gov.uk/id/local-authority/12UE,Huntingdonshire District Council,26/05/2011,81905,15198.24,Eacs Ltd,CR404499,Helpdesk,Software,206
http://statistics.data.gov.uk/id/local-authority/12UE,Huntingdonshire District Council,19/05/2011,81859,1061.58,King Bros,CR411339,Hinchingbrooke Country Park,Catering Materials,559
http://statistics.data.gov.uk/id/local-authority/12UE,Huntingdonshire District Council,12/05/2011,81207,878.82,King Bros,CR411339,Hinchingbrooke Country Park,Catering Materials,559
http://statistics.data.gov.uk/id/local-authority/12UE,Huntingdonshire District Council,05/05/2011,80907,731.69,King Bros,CR411339,Hinchingbrooke Country Park,Catering Materials,559
http://statistics.data.gov.uk/id/local-authority/12UE,Huntingdonshire District Council,26/05/2011,81863,726.21,King Bros,CR411339,Hinchingbrooke Country Park,Catering Materials,559
http://statistics.data.gov.uk/id/local-authority/12UE,Huntingdonshire District Council,19/05/2011,81861,674.98,King Bros,CR411339,Hinchingbrooke Country Park,Catering Materials,559
http://statistics.data.gov.uk/id/local-authority/12UE,Huntingdonshire District Council,05/05/2011,81580,579.20,Alexanders Self Storage,CR478267,Homelessness Management,Removal/Storage,750
http://statistics.data.gov.uk/id/local-authority/12UE,Huntingdonshire District Council,19/05/2011,82506,552.00,Alexanders Self Storage,CR478267,Homelessness Management,Removal/Storage,750
http://statistics.data.gov.uk/id/local-authority/12UE,Huntingdonshire District Council,26/05/2011,516756,974.14,Bibby Factors Leicester Ltd,CR480417,Housing Management Units,Hired Staff,100
http://statistics.data.gov.uk/id/local-authority/12UE,Huntingdonshire District Council,19/05/2011,516513,842.50,Bibby Factors Leicester Ltd,CR480417,Housing Management Units,Hired Staff,100
http://statistics.data.gov.uk/id/local-authority/12UE,Huntingdonshire District Council,05/05/2011,515775,835.92,Bibby Factors Leicester Ltd,CR480417,Housing Management Units,Hired Staff,100
http://statistics.data.gov.uk/id/local-authority/12UE,Huntingdonshire District Council,12/05/2011,516105,684.53,Bibby Factors Leicester Ltd,CR480417,Housing Management Units,Hired Staff,100
http://statistics.data.gov.uk/id/local-authority/12UE,Huntingdonshire District Council,19/05/2011,82431,2100.03,Swalec,CR407130,Housing Services Other,Electricity,420
http://statistics.data.gov.uk/id/local-authority/12UE,Huntingdonshire District Council,26/05/2011,82399,600.00,Complywise,CR480654,Human Resources,Software,206
http://statistics.data.gov.uk/id/local-authority/12UE,Huntingdonshire District Council,26/05/2011,82889,107860.99,Graham,CR480029,Industrial Properties Capital,Building Construction,300
http://statistics.data.gov.uk/id/local-authority/12UE,Huntingdonshire District Council,19/05/2011,82324,421.80,T N T Post Midlands Ltd,CR479965,Internal Services Holding,Postage,231
http://statistics.data.gov.uk/id/local-authority/12UE,Huntingdonshire District Council,19/05/2011,77875,421.80,T N T Post Midlands Ltd,CR479965,Internal Services Holding,Postage,231
http://statistics.data.gov.uk/id/local-authority/12UE,Huntingdonshire District Council,19/05/2011,82325,-421.80,T N T Post Midlands Ltd,CR479965,Internal Services Holding,Postage,231
http://statistics.data.gov.uk/id/local-authority/12UE,Huntingdonshire District Council,05/05/2011,81135,1943.50,Staffline Group,CR416827,Kerbside Recycling,Hired Staff,100
http://statistics.data.gov.uk/id/local-authority/12UE,Huntingdonshire District Council,19/05/2011,81954,1877.68,Staffline Group,CR416827,Kerbside Recycling,Hired Staff,100
http://statistics.data.gov.uk/id/local-authority/12UE,Huntingdonshire District Council,12/05/2011,81219,1855.66,Staffline Group,CR416827,Kerbside Recycling,Hired Staff,100
http://statistics.data.gov.uk/id/local-authority/12UE,Huntingdonshire District Council,26/05/2011,81964,1087.16,Staffline Group,CR416827,Kerbside Recycling,Hired Staff,100
http://statistics.data.gov.uk/id/local-authority/12UE,Huntingdonshire District Council,19/05/2011,81252,2030.10,Dennis Eagle Ltd,CR000200,Kerbside Recycling,Vehicle Maintenance,619
http://statistics.data.gov.uk/id/local-authority/12UE,Huntingdonshire District Council,19/05/2011,81301,1687.01,Dennis Eagle Ltd,CR000200,Kerbside Recycling,Vehicle Maintenance,619
http://statistics.data.gov.uk/id/local-authority/12UE,Huntingdonshire District Council,26/05/2011,82470,1098.20,Dennis Eagle Ltd,CR000200,Kerbside Recycling,Vehicle Parts,625
http://statistics.data.gov.uk/id/local-authority/12UE,Huntingdonshire District Council,26/05/2011,82115,5442.00,Sweet & Maxwell,CR412314,Legal Services Managment Units,Books & Publications,250
http://statistics.data.gov.uk/id/local-authority/12UE,Huntingdonshire District Council,26/05/2011,82540,4503.60,Sweet & Maxwell,CR412314,Legal Services Managment Units,Software,206
http://statistics.data.gov.uk/id/local-authority/12UE,Huntingdonshire District Council,26/05/2011,82969,153402.95,R G Carter Peterborough,CR401511,Leisure Centres Capital,Building Construction,300
http://statistics.data.gov.uk/id/local-authority/12UE,Huntingdonshire District Council,19/05/2011,82303,140830.12,R G Carter Peterborough,CR401511,Leisure Centres Capital,Building Construction,300
http://statistics.data.gov.uk/id/local-authority/12UE,Huntingdonshire District Council,26/05/2011,81508,840.00,Building Services Design - Bsd,CR409263,Leisure Centres Capital,Consultants Other,711
http://statistics.data.gov.uk/id/local-authority/12UE,Huntingdonshire District Council,12/05/2011,82078,84989.68,R G Carter Peterborough,CR401511,Leisure Centres Capital,Gen Building Mtce - Planned,304
http://statistics.data.gov.uk/id/local-authority/12UE,Huntingdonshire District Council,26/05/2011,81568,3675.89,Uk Power Networks,CR403938,Leisure Centres Capital,Sitework,359
http://statistics.data.gov.uk/id/local-authority/12UE,Huntingdonshire District Council,19/05/2011,82421,142.38,Swan Print,CR413699,Leisure Centres Overall,Printing (External),220
http://statistics.data.gov.uk/id/local-authority/12UE,Huntingdonshire District Council,19/05/2011,81674,987.00,Mo Motors,CR406493,Licences,Vehicle Inspection,618
http://statistics.data.gov.uk/id/local-authority/12UE,Huntingdonshire District Council,12/05/2011,81679,864.00,Mo Motors,CR406493,Licences,Vehicle Inspection,618
http://statistics.data.gov.uk/id/local-authority/12UE,Huntingdonshire District Council,12/05/2011,81678,810.00,Mo Motors,CR406493,Licences,Vehicle Inspection,618
http://statistics.data.gov.uk/id/local-authority/12UE,Huntingdonshire District Council,26/05/2011,81677,663.00,Mo Motors,CR406493,Licences,Vehicle Inspection,618
http://statistics.data.gov.uk/id/local-authority/12UE,Huntingdonshire District Council,26/05/2011,82010,780.00,Lloyds Tsb Commercial Finance Ltd,CR410928,Littering,Subcontractors,777
http://statistics.data.gov.uk/id/local-authority/12UE,Huntingdonshire District Council,20/05/2011,82478,210.00,Post Office  Ltd,CR008902,Littering,Vehicle Licence,609
http://statistics.data.gov.uk/id/local-authority/12UE,Huntingdonshire District Council,19/05/2011,81875,1111.60,Link Support Services (Uk) Lts,CR482303,Member Allowances & Support,Training - Professional,130
http://statistics.data.gov.uk/id/local-authority/12UE,Huntingdonshire District Council,26/05/2011,82813,898.92,Pictorial Meadows Ltd,CR479407,Misc Countryside Sites,Grounds Mtce Contractors,351
http://statistics.data.gov.uk/id/local-authority/12UE,Huntingdonshire District Council,12/05/2011,516080,9285.00,Bedford Pilgrims,CR100968,Miscellaneous Grants,Grants (Paid Out),800
http://statistics.data.gov.uk/id/local-authority/12UE,Huntingdonshire District Council,26/05/2011,82734,4098.12,Disability Information Service Huntingdonshir,CR408884,Miscellaneous Grants,Grants (Paid Out),800
http://statistics.data.gov.uk/id/local-authority/12UE,Huntingdonshire District Council,12/05/2011,516082,1767.50,Disability Information Service Huntingdonshir,CR408884,Miscellaneous Grants,Grants (Paid Out),800
http://statistics.data.gov.uk/id/local-authority/12UE,Huntingdonshire District Council,12/05/2011,516077,9285.00,Huntingdonshire  Volunteer Centre,CR410643,Miscellaneous Grants,Grants (Paid Out),800
http://statistics.data.gov.uk/id/local-authority/12UE,Huntingdonshire District Council,12/05/2011,516083,42312.50,Huntingdonshire Citizens Advice Bureau,CR406206,Miscellaneous Grants,Grants (Paid Out),800
http://statistics.data.gov.uk/id/local-authority/12UE,Huntingdonshire District Council,12/05/2011,516079,6607.50,Hunts Shopmobility,CR429218,Miscellaneous Grants,Grants (Paid Out),800
http://statistics.data.gov.uk/id/local-authority/12UE,Huntingdonshire District Council,12/05/2011,516081,6592.50,St Barnabas Community Learning Centre,CR412072,Miscellaneous Grants,Grants (Paid Out),800
http://statistics.data.gov.uk/id/local-authority/12UE,Huntingdonshire District Council,12/05/2011,82082,1322.40,Hp Care Pack Sales,CR478055,Network Services,Equipment Maintenance,511
http://statistics.data.gov.uk/id/local-authority/12UE,Huntingdonshire District Council,26/05/2011,81903,1870.99,Kelway (Uk) Ltd,CR004345,Network Services,Equipment Maintenance,511
http://statistics.data.gov.uk/id/local-authority/12UE,Huntingdonshire District Council,19/05/2011,81894,1002.11,Reed Employment Plc,CR416757,Network Services,Hired Staff,100
http://statistics.data.gov.uk/id/local-authority/12UE,Huntingdonshire District Council,12/05/2011,81610,724.50,Reed Employment Plc,CR416757,Network Services,Hired Staff,100
http://statistics.data.gov.uk/id/local-authority/12UE,Huntingdonshire District Council,12/05/2011,77139,2725.20,Daisy Communications Ltd,CR481089,Network Services,I T Line Rental,248
http://statistics.data.gov.uk/id/local-authority/12UE,Huntingdonshire District Council,19/05/2011,81611,941.17,Reed Employment Plc,CR416757,Network Services,I T Line Rental,248
http://statistics.data.gov.uk/id/local-authority/12UE,Huntingdonshire District Council,05/05/2011,81609,1530.00,Virgin Media Business,CR033120,Network Services,I T Line Rental,248
http://statistics.data.gov.uk/id/local-authority/12UE,Huntingdonshire District Council,19/05/2011,81908,10678.10,Vodafone Limited,CR029120,Network Services,Mobile Telephones & Radios,241
http://statistics.data.gov.uk/id/local-authority/12UE,Huntingdonshire District Council,12/05/2011,81892,1729.15,Comtec,CR480140,Network Services,Software,206
http://statistics.data.gov.uk/id/local-authority/12UE,Huntingdonshire District Council,12/05/2011,81314,576.00,Dal-Rod Uk Ltd,CR002782,Nightsoil,Subcontractors,777
http://statistics.data.gov.uk/id/local-authority/12UE,Huntingdonshire District Council,05/05/2011,80474,612.00,Dal-Rod (Camridgeshire),CR413675,Nuisances,Drains & Sewers,321
http://statistics.data.gov.uk/id/local-authority/12UE,Huntingdonshire District Council,26/05/2011,81612,901294.71,Carillion A M Developments,CR415549,Offices Capital,Building Construction,300
http://statistics.data.gov.uk/id/local-authority/12UE,Huntingdonshire District Council,26/05/2011,81561,3402.00,Lambert Smith Hampton,CR410940,Offices Capital,Consultants Other,711
http://statistics.data.gov.uk/id/local-authority/12UE,Huntingdonshire District Council,26/05/2011,82524,297.62,G4s Cashservices Uk Ltd,CR407133,One Leisure Huntingdon,Cash Collection,702
http://statistics.data.gov.uk/id/local-authority/12UE,Huntingdonshire District Council,05/05/2011,81260,501.82,Maskearaid Ind Supplies,CR033423,One Leisure Huntingdon,Cleaning Materials,443
http://statistics.data.gov.uk/id/local-authority/12UE,Huntingdonshire District Council,19/05/2011,82427,4047.30,Swalec,CR407130,One Leisure Huntingdon,Electricity,420
http://statistics.data.gov.uk/id/local-authority/12UE,Huntingdonshire District Council,19/05/2011,82426,3912.63,Swalec,CR407130,One Leisure Huntingdon,Electricity,420
http://statistics.data.gov.uk/id/local-authority/12UE,Huntingdonshire District Council,26/05/2011,82074,620.54,Inflatable Testing & Repairing Services Ltd,CR410226,One Leisure Huntingdon,Equipment Maintenance,511
http://statistics.data.gov.uk/id/local-authority/12UE,Huntingdonshire District Council,19/05/2011,82413,3304.02,E-On Energy,CR416430,One Leisure Huntingdon,Gas,421
http://statistics.data.gov.uk/id/local-authority/12UE,Huntingdonshire District Council,19/05/2011,82407,661.34,E-On Energy,CR416430,One Leisure Huntingdon,Gas,421
http://statistics.data.gov.uk/id/local-authority/12UE,Huntingdonshire District Council,26/05/2011,82051,2230.00,Chris Robinson T/A Cr Design,CR416482,One Leisure Huntingdon,Gen Building Mtce - Planned,304
http://statistics.data.gov.uk/id/local-authority/12UE,Huntingdonshire District Council,19/05/2011,82110,301.20,Fitness Industry Assoc. Ltd,CR003876,One Leisure Huntingdon,Licences,730
http://statistics.data.gov.uk/id/local-authority/12UE,Huntingdonshire District Council,26/05/2011,81000,864.00,Reality Solutions Ltd,CR478969,One Leisure Huntingdon,Other I T Hardware,203
http://statistics.data.gov.uk/id/local-authority/12UE,Huntingdonshire District Council,19/05/2011,82421,739.68,Swan Print,CR413699,One Leisure Huntingdon,Printing (External),220
http://statistics.data.gov.uk/id/local-authority/12UE,Huntingdonshire District Council,12/05/2011,82065,1338.76,Ecocleen Services Limited,CR406985,One Leisure Huntingdon,Subcontractors,777
http://statistics.data.gov.uk/id/local-authority/12UE,Huntingdonshire District Council,12/05/2011,82071,1947.98,Phs Group Ltd,CR032018,One Leisure Huntingdon,Subcontractors,777
http://statistics.data.gov.uk/id/local-authority/12UE,Huntingdonshire District Council,12/05/2011,516184,770.00,Splash Academy,CR403645,One Leisure Huntingdon,Training - Operational,131
http://statistics.data.gov.uk/id/local-authority/12UE,Huntingdonshire District Council,12/05/2011,81280,1196.72,Glaxosmithkline,CR010424,One Leisure Huntingdon,Vending Materials,560
http://statistics.data.gov.uk/id/local-authority/12UE,Huntingdonshire District Council,26/05/2011,82524,74.41,G4s Cashservices Uk Ltd,CR407133,One Leisure Ramsey,Cash Collection,702
http://statistics.data.gov.uk/id/local-authority/12UE,Huntingdonshire District Council,19/05/2011,79585,-276.18,Elecheck (Est) Ltd,CR480242,One Leisure Ramsey,Electrical Testing,383
http://statistics.data.gov.uk/id/local-authority/12UE,Huntingdonshire District Council,19/05/2011,82424,1885.18,Swalec,CR407130,One Leisure Ramsey,Electricity,420
http://statistics.data.gov.uk/id/local-authority/12UE,Huntingdonshire District Council,26/05/2011,82074,321.06,Inflatable Testing & Repairing Services Ltd,CR410226,One Leisure Ramsey,Equipment Maintenance,511
http://statistics.data.gov.uk/id/local-authority/12UE,Huntingdonshire District Council,12/05/2011,81817,859.20,Technogym Uk Ltd,CR033037,One Leisure Ramsey,Equipment Maintenance,511
http://statistics.data.gov.uk/id/local-authority/12UE,Huntingdonshire District Council,19/05/2011,81819,4746.49,Artificial Grass Maintenance Ltd,CR487264,One Leisure Ramsey,Equipment Purchases,500
http://statistics.data.gov.uk/id/local-authority/12UE,Huntingdonshire District Council,12/05/2011,81818,2538.00,Technogym Uk Ltd,CR033037,One Leisure Ramsey,Equipment Purchases,500
http://statistics.data.gov.uk/id/local-authority/12UE,Huntingdonshire District Council,19/05/2011,82408,1030.42,E-On Energy,CR416430,One Leisure Ramsey,Gas,421
http://statistics.data.gov.uk/id/local-authority/12UE,Huntingdonshire District Council,12/05/2011,81801,960.95,Ecocleen Services Limited,CR406985,One Leisure Ramsey,Gen Building Mtce - Responsive,303
http://statistics.data.gov.uk/id/local-authority/12UE,Huntingdonshire District Council,19/05/2011,82110,301.20,Fitness Industry Assoc. Ltd,CR003876,One Leisure Ramsey,Licences,730
http://statistics.data.gov.uk/id/local-authority/12UE,Huntingdonshire District Council,19/05/2011,81811,520.50,Iql Uk Ltd,CR415623,One Leisure Ramsey,Materials,550
http://statistics.data.gov.uk/id/local-authority/12UE,Huntingdonshire District Council,19/05/2011,81813,522.92,Zoggs International Ltd,CR004270,One Leisure Ramsey,Materials For Resale,570
http://statistics.data.gov.uk/id/local-authority/12UE,Huntingdonshire District Council,26/05/2011,82739,2856.00,Gladstone Mrm,CR405717,One Leisure Ramsey,Other I T Hardware,203
http://statistics.data.gov.uk/id/local-authority/12UE,Huntingdonshire District Council,26/05/2011,81000,864.00,Reality Solutions Ltd,CR478969,One Leisure Ramsey,Other I T Hardware,203
http://statistics.data.gov.uk/id/local-authority/12UE,Huntingdonshire District Council,19/05/2011,82421,189.84,Swan Print,CR413699,One Leisure Ramsey,Printing (External),220
http://statistics.data.gov.uk/id/local-authority/12UE,Huntingdonshire District Council,12/05/2011,516088,3879.00,Anglian Water,CR000071,One Leisure Ramsey,Sewerage,433
http://statistics.data.gov.uk/id/local-authority/12UE,Huntingdonshire District Council,26/05/2011,82524,74.41,G4s Cashservices Uk Ltd,CR407133,One Leisure Sawtry,Cash Collection,702
http://statistics.data.gov.uk/id/local-authority/12UE,Huntingdonshire District Council,19/05/2011,79585,-274.13,Elecheck (Est) Ltd,CR480242,One Leisure Sawtry,Electrical Testing,383
http://statistics.data.gov.uk/id/local-authority/12UE,Huntingdonshire District Council,05/05/2011,81552,3676.29,Swalec,CR407130,One Leisure Sawtry,Electricity,420
http://statistics.data.gov.uk/id/local-authority/12UE,Huntingdonshire District Council,19/05/2011,82423,3217.52,Swalec,CR407130,One Leisure Sawtry,Electricity,420
http://statistics.data.gov.uk/id/local-authority/12UE,Huntingdonshire District Council,26/05/2011,82074,321.06,Inflatable Testing & Repairing Services Ltd,CR410226,One Leisure Sawtry,Equipment Maintenance,511
http://statistics.data.gov.uk/id/local-authority/12UE,Huntingdonshire District Council,19/05/2011,82409,1786.61,E-On Energy,CR416430,One Leisure Sawtry,Gas,421
http://statistics.data.gov.uk/id/local-authority/12UE,Huntingdonshire District Council,19/05/2011,82110,301.20,Fitness Industry Assoc. Ltd,CR003876,One Leisure Sawtry,Licences,730
http://statistics.data.gov.uk/id/local-authority/12UE,Huntingdonshire District Council,26/05/2011,82740,4950.60,Gladstone Mrm,CR405717,One Leisure Sawtry,Other I T Hardware,203
http://statistics.data.gov.uk/id/local-authority/12UE,Huntingdonshire District Council,26/05/2011,81000,864.00,Reality Solutions Ltd,CR478969,One Leisure Sawtry,Other I T Hardware,203
http://statistics.data.gov.uk/id/local-authority/12UE,Huntingdonshire District Council,19/05/2011,82421,189.84,Swan Print,CR413699,One Leisure Sawtry,Printing (External),220
http://statistics.data.gov.uk/id/local-authority/12UE,Huntingdonshire District Council,05/05/2011,81672,124.73,Booker Cash And Carry,CR027611,One Leisure St Ives,Bar Provisions,558
http://statistics.data.gov.uk/id/local-authority/12UE,Huntingdonshire District Council,26/05/2011,82931,165.72,Booker Cash And Carry,CR027611,One Leisure St Ives,Bar Provisions,558
http://statistics.data.gov.uk/id/local-authority/12UE,Huntingdonshire District Council,26/05/2011,82932,560.30,Booker Cash And Carry,CR027611,One Leisure St Ives,Bar Provisions,558
http://statistics.data.gov.uk/id/local-authority/12UE,Huntingdonshire District Council,26/05/2011,82943,1284.74,Heineken Uk Ltd,CR032678,One Leisure St Ives,Bar Provisions,558
http://statistics.data.gov.uk/id/local-authority/12UE,Huntingdonshire District Council,26/05/2011,82942,1120.52,Heineken Uk Ltd,CR032678,One Leisure St Ives,Bar Provisions,558
http://statistics.data.gov.uk/id/local-authority/12UE,Huntingdonshire District Council,05/05/2011,81654,761.39,Heineken Uk Ltd,CR032678,One Leisure St Ives,Bar Provisions,558
http://statistics.data.gov.uk/id/local-authority/12UE,Huntingdonshire District Council,26/05/2011,82524,223.22,G4s Cashservices Uk Ltd,CR407133,One Leisure St Ives,Cash Collection,702
http://statistics.data.gov.uk/id/local-authority/12UE,Huntingdonshire District Council,26/05/2011,82932,2.50,Booker Cash And Carry,CR027611,One Leisure St Ives,Catering Materials,559
http://statistics.data.gov.uk/id/local-authority/12UE,Huntingdonshire District Council,05/05/2011,81672,801.99,Booker Cash And Carry,CR027611,One Leisure St Ives,Confectionery,572
http://statistics.data.gov.uk/id/local-authority/12UE,Huntingdonshire District Council,26/05/2011,82931,111.22,Booker Cash And Carry,CR027611,One Leisure St Ives,Confectionery,572
http://statistics.data.gov.uk/id/local-authority/12UE,Huntingdonshire District Council,19/05/2011,82429,7705.06,Swalec,CR407130,One Leisure St Ives,Electricity,420
http://statistics.data.gov.uk/id/local-authority/12UE,Huntingdonshire District Council,19/05/2011,82425,1720.40,Swalec,CR407130,One Leisure St Ives,Electricity,420
http://statistics.data.gov.uk/id/local-authority/12UE,Huntingdonshire District Council,12/05/2011,81617,517.20,Sky Business,CR033259,One Leisure St Ives,Entertainments Inc Cable Tv,744
http://statistics.data.gov.uk/id/local-authority/12UE,Huntingdonshire District Council,12/05/2011,80943,1071.36,Honeywell Novar Systems,CR406826,One Leisure St Ives,Equipment Maintenance,511
http://statistics.data.gov.uk/id/local-authority/12UE,Huntingdonshire District Council,26/05/2011,82074,171.34,Inflatable Testing & Repairing Services Ltd,CR410226,One Leisure St Ives,Equipment Maintenance,511
http://statistics.data.gov.uk/id/local-authority/12UE,Huntingdonshire District Council,12/05/2011,81175,733.86,Life Fitness Uk Ltd,CR004396,One Leisure St Ives,Equipment Maintenance,511
http://statistics.data.gov.uk/id/local-authority/12UE,Huntingdonshire District Council,19/05/2011,82410,2788.99,E-On Energy,CR416430,One Leisure St Ives,Gas,421
http://statistics.data.gov.uk/id/local-authority/12UE,Huntingdonshire District Council,26/05/2011,82945,937.27,Air Products Ltd,CR029169,One Leisure St Ives,Gas Cylinders (Incl. Bars),567
http://statistics.data.gov.uk/id/local-authority/12UE,Huntingdonshire District Council,19/05/2011,81158,1161.60,P & B Flooring Ltd,CR477485,One Leisure St Ives,Gen Building Mtce - Planned,304
http://statistics.data.gov.uk/id/local-authority/12UE,Huntingdonshire District Council,12/05/2011,81965,504.28,Asr,CR482312,One Leisure St Ives,Gen Building Mtce - Responsive,303
http://statistics.data.gov.uk/id/local-authority/12UE,Huntingdonshire District Council,26/05/2011,82880,1229.02,Roger Wilson Electronics,CR028041,One Leisure St Ives,Gen Building Mtce - Responsive,303
http://statistics.data.gov.uk/id/local-authority/12UE,Huntingdonshire District Council,19/05/2011,82110,301.20,Fitness Industry Assoc. Ltd,CR003876,One Leisure St Ives,Licences,730
http://statistics.data.gov.uk/id/local-authority/12UE,Huntingdonshire District Council,19/05/2011,82107,1787.18,Zoggs International Ltd,CR004270,One Leisure St Ives,Materials For Resale,570
http://statistics.data.gov.uk/id/local-authority/12UE,Huntingdonshire District Council,26/05/2011,81000,864.00,Reality Solutions Ltd,CR478969,One Leisure St Ives,Other I T Hardware,203
http://statistics.data.gov.uk/id/local-authority/12UE,Huntingdonshire District Council,19/05/2011,82421,1216.98,Swan Print,CR413699,One Leisure St Ives,Printing (External),220
http://statistics.data.gov.uk/id/local-authority/12UE,Huntingdonshire District Council,05/05/2011,81567,1434.00,R G Carter Peterborough,CR401511,One Leisure St Ives,Sitework,359
http://statistics.data.gov.uk/id/local-authority/12UE,Huntingdonshire District Council,05/05/2011,81665,1337.04,Booker Cash And Carry,CR027611,One Leisure St Ives,Vending Materials,560
http://statistics.data.gov.uk/id/local-authority/12UE,Huntingdonshire District Council,26/05/2011,82930,1021.82,Booker Cash And Carry,CR027611,One Leisure St Ives,Vending Materials,560
http://statistics.data.gov.uk/id/local-authority/12UE,Huntingdonshire District Council,26/05/2011,82934,930.40,Booker Cash And Carry,CR027611,One Leisure St Ives,Vending Materials,560
http://statistics.data.gov.uk/id/local-authority/12UE,Huntingdonshire District Council,05/05/2011,81662,903.36,Booker Cash And Carry,CR027611,One Leisure St Ives,Vending Materials,560
http://statistics.data.gov.uk/id/local-authority/12UE,Huntingdonshire District Council,26/05/2011,82931,363.97,Booker Cash And Carry,CR027611,One Leisure St Ives,Vending Materials,560
http://statistics.data.gov.uk/id/local-authority/12UE,Huntingdonshire District Council,26/05/2011,82949,618.50,Glaxosmithkline,CR010424,One Leisure St Ives,Vending Materials,560
http://statistics.data.gov.uk/id/local-authority/12UE,Huntingdonshire District Council,05/05/2011,81660,578.57,Glaxosmithkline,CR010424,One Leisure St Ives,Vending Materials,560
http://statistics.data.gov.uk/id/local-authority/12UE,Huntingdonshire District Council,26/05/2011,81969,550.56,Biffa Waste Services Ltd,CR000376,One Leisure St Ives,Waste Disposal,763
http://statistics.data.gov.uk/id/local-authority/12UE,Huntingdonshire District Council,12/05/2011,82024,4898.23,Anglian Water,CR000071,One Leisure St Ives,Water,432
http://statistics.data.gov.uk/id/local-authority/12UE,Huntingdonshire District Council,26/05/2011,82738,6958.00,St Ivo School,CR408986,One Leisure St Ives,Water,432
http://statistics.data.gov.uk/id/local-authority/12UE,Huntingdonshire District Council,26/05/2011,82524,446.46,G4s Cashservices Uk Ltd,CR407133,One Leisure St Neots,Cash Collection,702
http://statistics.data.gov.uk/id/local-authority/12UE,Huntingdonshire District Council,05/05/2011,81200,824.72,Phs Group Ltd,CR032018,One Leisure St Neots,Cleaning Materials,443
http://statistics.data.gov.uk/id/local-authority/12UE,Huntingdonshire District Council,19/05/2011,79585,-394.84,Elecheck (Est) Ltd,CR480242,One Leisure St Neots,Electrical Testing,383
http://statistics.data.gov.uk/id/local-authority/12UE,Huntingdonshire District Council,19/05/2011,82444,7566.12,Swalec,CR407130,One Leisure St Neots,Electricity,420
http://statistics.data.gov.uk/id/local-authority/12UE,Huntingdonshire District Council,19/05/2011,82412,2516.84,E-On Energy,CR416430,One Leisure St Neots,Gas,421
http://statistics.data.gov.uk/id/local-authority/12UE,Huntingdonshire District Council,19/05/2011,82110,301.20,Fitness Industry Assoc. Ltd,CR003876,One Leisure St Neots,Licences,730
http://statistics.data.gov.uk/id/local-authority/12UE,Huntingdonshire District Council,24/05/2011,82686,877.45,Bnp Paribas,CR478703,One Leisure St Neots,Materials,550
http://statistics.data.gov.uk/id/local-authority/12UE,Huntingdonshire District Council,12/05/2011,81537,1933.21,Decleor Uk Ltd,CR480786,One Leisure St Neots,Materials,550
http://statistics.data.gov.uk/id/local-authority/12UE,Huntingdonshire District Council,12/05/2011,81537,316.85,Decleor Uk Ltd,CR480786,One Leisure St Neots,Materials For Resale,570
http://statistics.data.gov.uk/id/local-authority/12UE,Huntingdonshire District Council,26/05/2011,81000,864.00,Reality Solutions Ltd,CR478969,One Leisure St Neots,Other I T Hardware,203
http://statistics.data.gov.uk/id/local-authority/12UE,Huntingdonshire District Council,19/05/2011,82421,739.68,Swan Print,CR413699,One Leisure St Neots,Printing (External),220
http://statistics.data.gov.uk/id/local-authority/12UE,Huntingdonshire District Council,12/05/2011,81534,506.91,Limetree Marketing,CR002102,One Leisure St Neots,Stationery,225
http://statistics.data.gov.uk/id/local-authority/12UE,Huntingdonshire District Council,12/05/2011,82091,543.94,Anglian Water,CR000071,One Leisure St Neots,Water,432
http://statistics.data.gov.uk/id/local-authority/12UE,Huntingdonshire District Council,26/05/2011,82438,635.23,United Wipes,CR477773,Operations Mgt Units,Materials,550
http://statistics.data.gov.uk/id/local-authority/12UE,Huntingdonshire District Council,26/05/2011,82529,522.22,Luminus Homes,CR401276,Operations Mgt Units,Rent,410
http://statistics.data.gov.uk/id/local-authority/12UE,Huntingdonshire District Council,12/05/2011,82079,720.00,Gilden Training,CR481057,Operations Mgt Units,Training - Operational,131
http://statistics.data.gov.uk/id/local-authority/12UE,Huntingdonshire District Council,26/05/2011,82816,1564.34,Terberg Matec Uk Ltd,CR402183,Operations Mgt Units,Vehicle Maintenance,619
http://statistics.data.gov.uk/id/local-authority/12UE,Huntingdonshire District Council,12/05/2011,81210,550.80,Hagsplay Ltd,CR007211,Parks & Open Spaces,Playground Equipment,360
http://statistics.data.gov.uk/id/local-authority/12UE,Huntingdonshire District Council,05/05/2011,81321,624.00,Ecocleen Services Limited,CR406985,Pathfinder House Site,Building Cleaning Internal,440
http://statistics.data.gov.uk/id/local-authority/12UE,Huntingdonshire District Council,12/05/2011,81837,930.24,Maskearaid Ind Supplies,CR033423,Pathfinder House Site,Cleaning Materials,443
http://statistics.data.gov.uk/id/local-authority/12UE,Huntingdonshire District Council,19/05/2011,82102,5100.23,Elecheck (Est) Ltd,CR480242,Pathfinder House Site,Electrical Testing,383
http://statistics.data.gov.uk/id/local-authority/12UE,Huntingdonshire District Council,19/05/2011,82428,9723.51,Swalec,CR407130,Pathfinder House Site,Electricity,420
http://statistics.data.gov.uk/id/local-authority/12UE,Huntingdonshire District Council,26/05/2011,82448,613.06,Swalec,CR407130,Pathfinder House Site,Electricity,420
http://statistics.data.gov.uk/id/local-authority/12UE,Huntingdonshire District Council,26/05/2011,82838,-613.06,Swalec,CR407130,Pathfinder House Site,Electricity,420
http://statistics.data.gov.uk/id/local-authority/12UE,Huntingdonshire District Council,26/05/2011,82667,1411.20,Flora Tec Ltd,CR028191,Pathfinder House Site,Equipment Cleaning,512
http://statistics.data.gov.uk/id/local-authority/12UE,Huntingdonshire District Council,19/05/2011,82089,956.95,Swalec,CR407130,Pathfinder House Site,Gas,421
http://statistics.data.gov.uk/id/local-authority/12UE,Huntingdonshire District Council,12/05/2011,81582,1981.69,Ecocleen Services Limited,CR406985,Pathfinder House Site,Gen Building Mtce - Planned,304
http://statistics.data.gov.uk/id/local-authority/12UE,Huntingdonshire District Council,26/05/2011,81564,4741.80,Kershaw Mechanical Services Ltd,CR480268,Pathfinder House Site,Gen Building Mtce - Planned,304
http://statistics.data.gov.uk/id/local-authority/12UE,Huntingdonshire District Council,26/05/2011,82534,1090.80,Kone Lifts Ltd,CR000483,Pathfinder House Site,Gen Building Mtce - Planned,304
http://statistics.data.gov.uk/id/local-authority/12UE,Huntingdonshire District Council,19/05/2011,81299,840.00,Eisenware Ltd,CR429242,Pathfinder House Site,Gen Building Mtce - Responsive,303
http://statistics.data.gov.uk/id/local-authority/12UE,Huntingdonshire District Council,26/05/2011,81804,3931.45,Semco Signs Ltd,CR083202,Pathfinder House Site,Gen Building Mtce - Responsive,303
http://statistics.data.gov.uk/id/local-authority/12UE,Huntingdonshire District Council,05/05/2011,80915,604.69,Chubb Electronic Security,CR029346,Pathfinder House Site,Security,450
http://statistics.data.gov.uk/id/local-authority/12UE,Huntingdonshire District Council,19/05/2011,79585,-6.79,Elecheck (Est) Ltd,CR480242,Pavillions,Electrical Testing,383
http://statistics.data.gov.uk/id/local-authority/12UE,Huntingdonshire District Council,19/05/2011,79585,-63.67,Elecheck (Est) Ltd,CR480242,Paxton Pits,Electrical Testing,383
http://statistics.data.gov.uk/id/local-authority/12UE,Huntingdonshire District Council,12/05/2011,81977,100.09,Shell Uk Ltd,CR028192,Paxton Pits,Petrol,614
http://statistics.data.gov.uk/id/local-authority/12UE,Huntingdonshire District Council,05/05/2011,81518,457.90,Computershare Vouchers Ltd,CR412205,Payroll,Childcare Admin Vouchers,144
http://statistics.data.gov.uk/id/local-authority/12UE,Huntingdonshire District Council,19/05/2011,81918,8951.65,Cambridgeshire County Council,CR006678,Pensions,Pension Early Retirements,151
http://statistics.data.gov.uk/id/local-authority/12UE,Huntingdonshire District Council,19/05/2011,81895,1397.86,Ibm United Kingdom Ltd,CR482315,People Performance&Partner Mu,Software,206
http://statistics.data.gov.uk/id/local-authority/12UE,Huntingdonshire District Council,19/05/2011,82395,795.49,Lex Autolease Ltd,CR410751,People Performance&Partner Mu,Vehicle Accident Damage,623
http://statistics.data.gov.uk/id/local-authority/12UE,Huntingdonshire District Council,12/05/2011,81849,3636.36,Misl,CR478637,Planning M U'S,Electronic Document Imaging,229
http://statistics.data.gov.uk/id/local-authority/12UE,Huntingdonshire District Council,12/05/2011,81970,17384.04,Acebench Limited,CR405428,Property Development And Mgt,Building Insurance,414
http://statistics.data.gov.uk/id/local-authority/12UE,Huntingdonshire District Council,12/05/2011,82112,7800.00,Drivers  Jonas Deloitte,CR400573,Property Development And Mgt,Consultants Other,711
http://statistics.data.gov.uk/id/local-authority/12UE,Huntingdonshire District Council,26/05/2011,82387,759.12,Cambridge Door Services,CR415341,Property Development And Mgt,Gen Building Mtce - Responsive,303
http://statistics.data.gov.uk/id/local-authority/12UE,Huntingdonshire District Council,19/05/2011,81659,810.00,Serco Ltd,CR481193,Public Accountability,Conferences,137
http://statistics.data.gov.uk/id/local-authority/12UE,Huntingdonshire District Council,19/05/2011,81633,2280.00,Rocket Software Uk Ltd,CR411171,Public Accountability,Software,206
http://statistics.data.gov.uk/id/local-authority/12UE,Huntingdonshire District Council,12/05/2011,81583,700.10,Ecocleen Services Limited,CR406985,Public Conveniences,Gen Building Mtce - Responsive,303
http://statistics.data.gov.uk/id/local-authority/12UE,Huntingdonshire District Council,19/05/2011,80621,52411.20,Ssi Schaefer Ltd,CR407190,Recycling Equipment Capital,Recycling Bins,525
http://statistics.data.gov.uk/id/local-authority/12UE,Huntingdonshire District Council,12/05/2011,81596,1164.38,15 New Bridge Street,CR480013,Revenue Services Mus,Legal Fees And Consultancy,729
http://statistics.data.gov.uk/id/local-authority/12UE,Huntingdonshire District Council,12/05/2011,81595,540.00,15 New Bridge Street,CR480013,Revenue Services Mus,Legal Fees And Consultancy,729
http://statistics.data.gov.uk/id/local-authority/12UE,Huntingdonshire District Council,26/05/2011,82522,3120.54,Sarfo Solicitors,CR415973,Revenue Services Mus,Legal Fees And Consultancy,729
http://statistics.data.gov.uk/id/local-authority/12UE,Huntingdonshire District Council,19/05/2011,81514,2967.46,T N T Post Midlands Ltd,CR479965,Revenue Services Mus,Postage,231
http://statistics.data.gov.uk/id/local-authority/12UE,Huntingdonshire District Council,05/05/2011,80658,2783.32,T N T Post Midlands Ltd,CR479965,Revenue Services Mus,Postage,231
http://statistics.data.gov.uk/id/local-authority/12UE,Huntingdonshire District Council,19/05/2011,82324,841.22,T N T Post Midlands Ltd,CR479965,Revenue Services Mus,Postage,231
http://statistics.data.gov.uk/id/local-authority/12UE,Huntingdonshire District Council,19/05/2011,77875,841.22,T N T Post Midlands Ltd,CR479965,Revenue Services Mus,Postage,231
http://statistics.data.gov.uk/id/local-authority/12UE,Huntingdonshire District Council,26/05/2011,81887,734.00,T N T Post Midlands Ltd,CR479965,Revenue Services Mus,Postage,231
http://statistics.data.gov.uk/id/local-authority/12UE,Huntingdonshire District Council,12/05/2011,81812,496.17,T N T Post Midlands Ltd,CR479965,Revenue Services Mus,Postage,231
http://statistics.data.gov.uk/id/local-authority/12UE,Huntingdonshire District Council,12/05/2011,81183,214.70,T N T Post Midlands Ltd,CR479965,Revenue Services Mus,Postage,231
http://statistics.data.gov.uk/id/local-authority/12UE,Huntingdonshire District Council,19/05/2011,82325,-841.22,T N T Post Midlands Ltd,CR479965,Revenue Services Mus,Postage,231
http://statistics.data.gov.uk/id/local-authority/12UE,Huntingdonshire District Council,05/05/2011,81637,19884.00,Northgate Information Solutions Uk Ltd,CR028925,Revenue Services Mus,Software,206
http://statistics.data.gov.uk/id/local-authority/12UE,Huntingdonshire District Council,26/05/2011,82498,3517.50,Edrm Systems Ltd,CR416278,Software Capital,Consultants Other,711
http://statistics.data.gov.uk/id/local-authority/12UE,Huntingdonshire District Council,12/05/2011,81896,14259.12,Cable & Wireless Worldwide,CR482316,Software Capital,I T Line Rental,248
http://statistics.data.gov.uk/id/local-authority/12UE,Huntingdonshire District Council,19/05/2011,82527,629.61,Dell Computer Corporation,CR408320,Software Capital,P C'S And Accessories,201
http://statistics.data.gov.uk/id/local-authority/12UE,Huntingdonshire District Council,26/05/2011,82896,3768.32,Technogym Uk Ltd,CR033037,Sports Equipment Capital,Sports Equipment,524
http://statistics.data.gov.uk/id/local-authority/12UE,Huntingdonshire District Council,12/05/2011,81961,958.20,Technogym Uk Ltd,CR033037,Sports Equipment Capital,Sports Equipment,524
http://statistics.data.gov.uk/id/local-authority/12UE,Huntingdonshire District Council,12/05/2011,81217,1619.56,Staffline Group,CR416827,Street Cleaning,Hired Staff,100
http://statistics.data.gov.uk/id/local-authority/12UE,Huntingdonshire District Council,05/05/2011,81136,1465.84,Staffline Group,CR416827,Street Cleaning,Hired Staff,100
http://statistics.data.gov.uk/id/local-authority/12UE,Huntingdonshire District Council,12/05/2011,81216,1284.66,Staffline Group,CR416827,Street Cleaning,Hired Staff,100
http://statistics.data.gov.uk/id/local-authority/12UE,Huntingdonshire District Council,19/05/2011,81944,1070.56,Staffline Group,CR416827,Street Cleaning,Hired Staff,100
http://statistics.data.gov.uk/id/local-authority/12UE,Huntingdonshire District Council,19/05/2011,81951,993.70,Staffline Group,CR416827,Street Cleaning,Hired Staff,100
http://statistics.data.gov.uk/id/local-authority/12UE,Huntingdonshire District Council,26/05/2011,81982,741.17,Staffline Group,CR416827,Street Cleaning,Hired Staff,100
http://statistics.data.gov.uk/id/local-authority/12UE,Huntingdonshire District Council,05/05/2011,81138,647.83,Staffline Group,CR416827,Street Cleaning,Hired Staff,100
http://statistics.data.gov.uk/id/local-authority/12UE,Huntingdonshire District Council,26/05/2011,82793,1332.00,Ians Tyre And Exhaust Centre,CR405836,Street Cleaning,Tyres,630
http://statistics.data.gov.uk/id/local-authority/12UE,Huntingdonshire District Council,26/05/2011,82802,1122.00,Ians Tyre And Exhaust Centre,CR405836,Street Cleaning,Tyres,630
http://statistics.data.gov.uk/id/local-authority/12UE,Huntingdonshire District Council,20/05/2011,82478,375.00,Post Office  Ltd,CR008902,Street Cleaning,Vehicle Licence,609
http://statistics.data.gov.uk/id/local-authority/12UE,Huntingdonshire District Council,05/05/2011,80634,2670.00,Cambridgeshire County Council,CR006678,Trade Waste,Waste Disposal,763
http://statistics.data.gov.uk/id/local-authority/12UE,Huntingdonshire District Council,26/05/2011,82290,974.75,John Henry & Sons,CR031967,Transportation Capital,Sitework,359
http://statistics.data.gov.uk/id/local-authority/12UE,Huntingdonshire District Council,26/05/2011,82294,973.20,John Henry & Sons,CR031967,Transportation Capital,Sitework,359
http://statistics.data.gov.uk/id/local-authority/12UE,Huntingdonshire District Council,12/05/2011,81868,6570.00,Arthur Ibbett Ltd,CR000430,Vehicles & Plant Capital,Vehicles Purchased,600
http://statistics.data.gov.uk/id/local-authority/12UE,Huntingdonshire District Council,12/05/2011,80911,252000.00,J Breheny Contractors Ltd,CR000314,Watercourse Capital,Sitework,359
